fUSD/lending_fUSD_20260510
["ID","MTS","AMOUNT","RATE_DAILY","PERIOD"]
[421956261,1778368251000,-3000.0,0.00041888,120]
[421956257,1778368251000,-3000.0,0.00041888,120]
[421956256,1778368251000,-3000.0,0.00041888,120]
[421956262,1778368251000,-3000.0,0.00041888,120]
[421956248,1778368251000,-3000.0,0.00041888,120]
[421956263,1778368251000,-3000.0,0.00041888,120]
[421956260,1778368251000,-3000.0,0.00041888,120]
[421956247,1778368251000,-3000.0,0.00041888,120]
[421956232,1778368251000,-250.0,0.00041863,120]
[421956255,1778368251000,-3000.0,0.00041888,120]
[421956264,1778368251000,-3000.0,0.00041888,120]
[421956234,1778368251000,-250.0,0.00041863,120]
[421956237,1778368251000,-700.0,0.0004187,3]
[421956236,1778368251000,-1000.0,0.0004187,120]
[421956231,1778368251000,-171.48,0.00041863,120]
[421956242,1778368251000,-3000.0,0.00041888,120]
[421956235,1778368251000,-250.0,0.00041863,120]
[421956238,1778368251000,-357.55604048,0.00041876,117]
[421956239,1778368251000,-2663.75742369,0.0004188,120]
[421956243,1778368251000,-3000.0,0.00041888,120]
[421956241,1778368251000,-3000.0,0.00041888,120]
[421956233,1778368251000,-250.0,0.00041863,120]
[421956240,1778368251000,-3000.0,0.00041888,120]
[421956246,1778368251000,-3000.0,0.00041888,120]
[421956245,1778368251000,-3000.0,0.00041888,120]
[421956244,1778368251000,-3000.0,0.00041888,120]
[421956259,1778368251000,-3000.0,0.00041888,120]
[421956299,1778368251000,-305771.05421657,0.00041889,30]
[421956265,1778368251000,-3000.0,0.00041888,120]
[421956288,1778368251000,-3000.0,0.00041888,120]
[421956291,1778368251000,-1000000.0,0.00041889,30]
[421956287,1778368251000,-3000.0,0.00041888,120]
[421956290,1778368251000,-558758.54115579,0.00041889,30]
[421956292,1778368251000,-620823.75390924,0.00041889,30]
[421956286,1778368251000,-3000.0,0.00041888,120]
[421956294,1778368251000,-209.40437684,0.00036766,2]
[421956293,1778368251000,-41391.32267195,0.00041889,30]
[421956295,1778368251000,-151.0,0.00041538,120]
[421956296,1778368251000,-151.0,0.0004186,120]
[421956298,1778368251000,-6021.21035833,0.00041889,30]
[421956302,1778368251000,-295.44116587,0.00013186,2]
[421956301,1778368251000,-10440.94554858,0.00041889,30]
[421956300,1778368251000,-16164.81965752,0.00041889,30]
[421956266,1778368251000,-3000.0,0.00041888,120]
[421956289,1778368251000,-2941.1501365,0.00041888,120]
[421956283,1778368251000,-3000.0,0.00041888,120]
[421956297,1778368251000,-9827.83918639,0.00041889,30]
[421956284,1778368251000,-3000.0,0.00041888,120]
[421956269,1778368251000,-3000.0,0.00041888,120]
[421956285,1778368251000,-3000.0,0.00041888,120]
[421956280,1778368251000,-3000.0,0.00041888,120]
[421956268,1778368251000,-3000.0,0.00041888,120]
[421956271,1778368251000,-3000.0,0.00041888,120]
[421956279,1778368251000,-3000.0,0.00041888,120]
[421956273,1778368251000,-3000.0,0.00041888,120]
[421956270,1778368251000,-3000.0,0.00041888,120]
[421956272,1778368251000,-3000.0,0.00041888,120]
[421956274,1778368251000,-3000.0,0.00041888,120]
[421956276,1778368251000,-3000.0,0.00041888,120]
[421956277,1778368251000,-3000.0,0.00041888,120]
[421956278,1778368251000,-3000.0,0.00041888,120]
[421956282,1778368251000,-3000.0,0.00041888,120]
[421956275,1778368251000,-3000.0,0.00041888,120]
[421956281,1778368251000,-3000.0,0.00041888,120]
[421956317,1778368252000,-151.0,0.00036766,2]
[421956323,1778368252000,-151.0,0.00041538,120]
[421956321,1778368252000,-151.0,0.00041538,120]
[421956325,1778368252000,-151.0,0.00041538,120]
[421956319,1778368252000,-526.35006308,0.00037691,2]
[421956322,1778368252000,-151.0,0.00041538,120]
[421956326,1778368252000,-151.0,0.0004186,120]
[421956316,1778368252000,-873.69588438,0.00033558,2]
[421956328,1778368252000,-151.0,0.0004186,120]
[421956324,1778368252000,-151.0,0.00041538,120]
[421956318,1778368252000,-151.0,0.00036821,2]
[421956305,1778368252000,-150.77,0.00027106,7]
[421956312,1778368252000,-942.51686749,0.00030558,2]
[421956310,1778368252000,-2636.34949281,0.00027397,10]
[421956313,1778368252000,-247.75716709,0.00030558,2]
[421956314,1778368252000,-233.65543833,0.000313,2]
[421956311,1778368252000,-2436.72596542,0.00030558,2]
[421956309,1778368252000,-2119.33276107,0.00027397,10]
[421956308,1778368252000,-47.2240233,0.00027397,10]
[421956306,1778368252000,-150.77,0.00027106,30]
[421956307,1778368252000,-3656.75372282,0.00027397,10]
[421956304,1778368252000,-150.77,0.00027106,2]
[421956303,1778368252000,-1010.74152454,0.00013186,2]
[421956327,1778368252000,-151.0,0.0004186,120]
[421956315,1778368252000,-1072.78311562,0.00033558,2]
[421956330,1778368252000,-151.0,0.0004186,120]
[421956320,1778368252000,-151.0,0.00041538,120]
[421956331,1778368252000,-151.0,0.0004186,120]
[421956329,1778368252000,-151.0,0.0004186,120]
[421956356,1778368252000,-156.57,0.00024886,7]
[421956355,1778368252000,-156.57,0.00024658,2]
[421956353,1778368252000,-427.46515504,0.00013614,2]
[421956354,1778368252000,-878.71753537,0.00013614,2]
[421956352,1778368252000,-840.24692897,0.00041889,30]
[421956350,1778368252000,-150.77,0.00027106,7]
[421956351,1778368252000,-151.0,0.0004186,120]
[421956347,1778368252000,-150.77,0.00027106,2]
[421956345,1778368252000,-212.070272,0.0004186,120]
[421956348,1778368252000,-26128.93086697,0.00041889,30]
[421956344,1778368252000,-228.882974,0.0004186,120]
[421956349,1778368252000,-503.0,0.00024397,2]
[421956342,1778368252000,-151.0,0.0004186,120]
[421956336,1778368252000,-151.0,0.0004186,120]
[421956346,1778368252000,-52628.06149357,0.00041889,30]
[421956338,1778368252000,-151.0,0.0004186,120]
[421956337,1778368252000,-151.0,0.0004186,120]
[421956334,1778368252000,-151.0,0.0004186,120]
[421956335,1778368252000,-151.0,0.0004186,120]
[421956333,1778368252000,-151.0,0.0004186,120]
[421956332,1778368252000,-151.0,0.0004186,120]
[421956341,1778368252000,-151.0,0.0004186,120]
[421956340,1778368252000,-151.0,0.0004186,120]
[421956343,1778368252000,-151.0,0.0004186,120]
[421956339,1778368252000,-151.0,0.0004186,120]
[421956365,1778368253000,-151.0,0.00036986,2]
[421956357,1778368253000,-156.57,0.00025114,30]
[421956358,1778368253000,-150.77,0.00027106,30]
[421956369,1778368253000,-151.0,0.0004186,120]
[421956359,1778368253000,-150.77,0.00027106,2]
[421956370,1778368253000,-151.0,0.0004186,120]
[421956361,1778368253000,-150.85,0.00027106,30]
[421956360,1778368253000,-150.77,0.00027106,7]
[421956363,1778368253000,-151.0,0.00036876,2]
[421956366,1778368253000,-151.0,0.00037041,2]
[421956364,1778368253000,-151.0,0.00036931,2]
[421956362,1778368253000,-233.65543833,0.000313,2]
[421956367,1778368253000,-151.0,0.00041538,120]
[421956380,1778368253000,-6190.75000025,0.00041889,30]
[421956379,1778368253000,-123140.01189516,0.00041889,30]
[421956368,1778368253000,-151.0,0.0004186,120]
[421956374,1778368253000,-156.57,0.00025342,2]
[421956373,1778368253000,-781.8135403,0.00041889,30]
[421956376,1778368253000,-151.0,0.0004186,120]
[421956377,1778368253000,-43.41276865,0.00041889,30]
[421956378,1778368253000,-2956.55,0.00041889,30]
[421956375,1778368253000,-151.0,0.00037096,2]
[421956372,1778368253000,-151.0,0.0004186,120]
[421956371,1778368253000,-151.0,0.0004186,120]
[421956383,1778369234000,-289.38153281,0.00014129,2]
[421956384,1778369345000,-369.45408172,0.00014168,2]
[421956385,1778369345000,-188.81407806,0.00014207,2]
[421956386,1778369345000,-150.0,0.0001427,2]
[421956387,1778369345000,-150.0,0.00014412,2]
[421956388,1778369345000,-163.31,0.00014552,2]
[421956389,1778369345000,-1764.70861649,0.00014552,2]
[421956391,1778369345000,-188.81407806,0.00014585,2]
[421956393,1778369345000,-300.0,0.00015542,2]
[421956392,1778369345000,-160.77743921,0.00014826,2]
[421956395,1778369345000,-250.0,0.00015542,2]
[421956394,1778369345000,-250.0,0.00015542,2]
[421956396,1778369345000,-1106.12273386,0.00016115,2]
[421956390,1778369345000,-150.0,0.00014553,2]
[421956400,1778369354000,-200.13601987,0.00019998,2]
[421956398,1778369354000,-93.87726614,0.00016115,2]
[421956397,1778369354000,-844.71515719,0.00014107,2]
[421956399,1778369354000,-3016.95,0.00016116,2]
[421956411,1778369371000,-389.0,0.00022,2]
[421956408,1778369371000,-511.4,0.00021273,2]
[421956407,1778369371000,-288.17,0.00021273,2]
[421956409,1778369371000,-942.48,0.00021273,2]
[421956406,1778369371000,-345.0,0.00021,2]
[421956402,1778369371000,-99.86398013,0.00019998,2]
[421956405,1778369371000,-389.0,0.00021,2]
[421956404,1778369371000,-345.0,0.0002,2]
[421956403,1778369371000,-389.0,0.0002,2]
[421956401,1778369371000,-536.61402611,0.00019898,2]
[421956410,1778369371000,-420.0,0.00021776,2]
[421956413,1778369371000,-345.0,0.00022,2]
[421956421,1778369371000,-462.0,0.00024397,2]
[421956412,1778369371000,-188.81407806,0.00022,2]
[421956414,1778369371000,-214.73073128,0.00022324,2]
[421956425,1778369371000,-154.38595792,0.00025571,7]
[421956423,1778369371000,-402.0,0.00025,2]
[421956424,1778369371000,-358.54248885,0.00025,2]
[421956420,1778369371000,-536.61402611,0.00024084,2]
[421956422,1778369371000,-503.0,0.00024397,2]
[421956418,1778369371000,-389.0,0.00024,2]
[421956417,1778369371000,-345.0,0.00023,2]
[421956415,1778369371000,-7273.020196,0.00022885,2]
[421956416,1778369371000,-389.0,0.00023,2]
[421956419,1778369371000,-345.0,0.00024,2]
[421956440,1778369433000,-511.4,0.00025786,2]
[421956447,1778369433000,-156.57,0.00026712,2]
[421956445,1778369433000,-156.57,0.00026484,30]
[421956444,1778369433000,-156.57,0.00026255,7]
[421956442,1778369433000,-156.57,0.00025799,30]
[421956443,1778369433000,-156.57,0.00026027,2]
[421956439,1778369433000,-288.17,0.00025786,2]
[421956431,1778369433000,-151.0,0.00019898,2]
[421956434,1778369433000,-2500.0,0.00021888,2]
[421956435,1778369433000,-2500.0,0.00022735,2]
[421956437,1778369433000,-2.18404208,0.00025571,7]
[421956432,1778369433000,-399.0,0.00021258,2]
[421956446,1778369433000,-166.68,0.00026509,30]
[421956433,1778369433000,-398.0,0.00021775,2]
[421956436,1778369433000,-1743.79017049,0.00024555,2]
[421956438,1778369433000,-503.0,0.00025721,3]
[421956448,1778369433000,-150.0,0.00026849,2]
[421956441,1778369433000,-942.48,0.00025786,2]
[421956450,1778369433000,-156.57,0.0002694,7]
[421956465,1778369433000,-11179.17,0.00028042,2]
[421956449,1778369433000,-8721.69,0.00026866,2]
[421956464,1778369433000,-166.68,0.00027904,30]
[421956466,1778369433000,-321.67,0.00028046,2]
[421956457,1778369433000,-156.69,0.00027397,2]
[421956459,1778369433000,-300.0,0.00027397,2]
[421956458,1778369433000,-1500.0,0.00027397,2]
[421956460,1778369433000,-1000.0,0.00027518,2]
[421956463,1778369433000,-500.0,0.000278,7]
[421956461,1778369433000,-176.23,0.00027571,120]
[421956455,1778369433000,-156.57,0.00027168,30]
[421956456,1778369433000,-846.71,0.00027338,2]
[421956453,1778369433000,-180.81,0.00027095,2]
[421956452,1778369433000,-503.0,0.00027045,4]
[421956451,1778369433000,-1852.42,0.00027022,2]
[421956462,1778369433000,-200.0,0.00027637,2]
[421956454,1778369433000,-466.7,0.00027137,2]
[421956481,1778369434000,-800.0,0.00029159,2]
[421956479,1778369434000,-3625.72,0.00028768,2]
[421956485,1778369434000,-2195.09417578,0.00029436,2]
[421956493,1778369434000,-1203.89,0.00030002,2]
[421956492,1778369434000,-503.0,0.00029693,7]
[421956488,1778369434000,-18.58417578,0.00029574,30]
[421956489,1778369434000,-450.0,0.00029574,30]
[421956487,1778369434000,-981.41582422,0.00029436,2]
[421956475,1778369434000,-249.99,0.00028596,2]
[421956494,1778369434000,-500.0,0.00030133,2]
[421956490,1778369434000,-31.41582422,0.00029574,30]
[421956478,1778369434000,-5000.0,0.00028754,2]
[421956470,1778369434000,-536.61402611,0.00028269,2]
[421956482,1778369434000,-1203.89,0.00029287,2]
[421956480,1778369434000,-500.0,0.00028936,2]
[421956477,1778369434000,-168.3,0.00028665,2]
[421956484,1778369434000,-500.0,0.000293,30]
[421956473,1778369434000,-200.0,0.00028402,2]
[421956474,1778369434000,-1203.89,0.00028573,2]
[421956468,1778369434000,-2500.0,0.00028153,120]
[421956467,1778369434000,-450.77,0.00028121,2]
[421956469,1778369434000,-150.0,0.00028192,2]
[421956472,1778369434000,-503.0,0.00028369,6]
[421956471,1778369434000,-1543.67,0.00028272,2]
[421956491,1778369434000,-150.0,0.00029601,2]
[421956483,1778369434000,-166.68,0.000293,30]
[421956495,1778369434000,-1203.89,0.00030716,2]
[421956486,1778369434000,-267.0,0.00029436,2]
[421956499,1778369434000,-503.0,0.00031017,8]
[421956520,1778369434000,-360.26825437,0.00034163,7]
[421956522,1778369434000,-273.7887623,0.00034163,7]
[421956524,1778369434000,-1512.44808607,0.00034164,2]
[421956496,1778369434000,-345.0,0.00030891,30]
[421956523,1778369434000,-1732.61969237,0.00034164,2]
[421956519,1778369434000,-500.0,0.00034163,7]
[421956518,1778369434000,-312.42641308,0.00034163,7]
[421956517,1778369434000,-3779.36486185,0.00034154,10]
[421956511,1778369434000,-1237.543,0.00033395,2]
[421956515,1778369434000,-389.0,0.00033945,30]
[421956509,1778369434000,-345.0,0.00032891,30]
[421956513,1778369434000,-503.0,0.00033664,11]
[421956510,1778369434000,-389.0,0.00032945,30]
[421956521,1778369434000,-500.0,0.00034163,7]
[421956512,1778369434000,-168.3,0.00033396,2]
[421956502,1778369434000,-1203.89,0.0003143,2]
[421956497,1778369434000,-389.0,0.00030945,30]
[421956503,1778369434000,-180.81,0.00031533,120]
[421956504,1778369434000,-345.0,0.00031891,30]
[421956506,1778369434000,-503.0,0.00032341,10]
[421956501,1778369434000,-150.0,0.00031081,2]
[421956500,1778369434000,-168.3,0.0003103,2]
[421956507,1778369434000,-150.0,0.00032636,2]
[421956505,1778369434000,-389.0,0.00031945,30]
[421956508,1778369434000,-800.0,0.00032804,2]
[421956514,1778369434000,-345.0,0.00033891,30]
[421956498,1778369434000,-164.88,0.00030972,2]
[421956516,1778369434000,-3270.35513815,0.00034154,10]
[421956677,1778369440000,-1664.454826,0.00034164,2]
[421956679,1778369440000,-15993.47518468,0.00034164,2]
[421956678,1778369440000,-419.17316,0.00034164,2]
[421956681,1778369441000,-17742.40077379,0.00034164,2]
[421956680,1778369441000,-398.0,0.00020885,2]
[421956695,1778369443000,-1000.0,0.00033395,2]
[421956696,1778369443000,-352.0,0.00033395,2]
[421956697,1778369443000,-4.30738706,0.00034164,2]
[421956698,1778369443000,-52686.7,0.00034164,2]
[421956699,1778369443000,-7247.62529003,0.00034164,2]
[421956705,1778369443000,-150.0,0.00034267,2]
[421956708,1778369443000,-187.04,0.00034759,2]
[421956706,1778369443000,-152.0,0.00034298,7]
[421956703,1778369443000,-1033.232,0.00034264,38]
[421956710,1778369443000,-150.0,0.00034792,7]
[421956721,1778369443000,-150.0,0.00034792,7]
[421956701,1778369443000,-183.91,0.0003419,120]
[421956716,1778369443000,-150.0,0.00034792,7]
[421956718,1778369443000,-150.69261961,0.00034792,7]
[421956720,1778369443000,-150.0,0.00034792,7]
[421956712,1778369443000,-150.0,0.00034792,7]
[421956723,1778369443000,-150.0,0.00034792,7]
[421956714,1778369443000,-150.0,0.00034792,7]
[421956741,1778369443000,-150.0,0.00035565,7]
[421956738,1778369443000,-150.0,0.00035296,7]
[421956727,1778369443000,-345.0,0.00034891,30]
[421956725,1778369443000,-150.0,0.00034792,7]
[421956729,1778369443000,-389.0,0.00034945,30]
[421956747,1778369443000,-150.0,0.00035632,7]
[421956731,1778369443000,-150.0,0.0003496,7]
[421956749,1778369443000,-150.0,0.00035758,7]
[421956735,1778369443000,-150.0,0.00035128,7]
[421956745,1778369443000,-212.36717794,0.00035616,2]
[421956733,1778369443000,-5874.77,0.00034978,10]
[421956743,1778369443000,-150.0,0.00035565,7]
[421956739,1778369443000,-150.0,0.00035464,7]
[421956766,1778369444000,-500.19441014,0.00035873,5]
[421956751,1778369444000,-242.13179583,0.00035789,2]
[421956754,1778369444000,-153.97106842,0.00035791,2]
[421956756,1778369444000,-1949.27594014,0.00035791,2]
[421956771,1778369444000,-14925.44607084,0.00035881,2]
[421956767,1778369444000,-500.30579145,0.00035873,5]
[421956764,1778369444000,-250.0,0.000358,30]
[421956769,1778369444000,-500.50592771,0.00035873,5]
[421956760,1778369444000,-682.27196926,0.00035791,10]
[421956762,1778369444000,-150.0,0.000358,7]
[421956758,1778369444000,-510.7450903,0.00035791,2]
[421956798,1778369446000,-522.02000001,0.00035881,2]
[421956799,1778369446000,-11834.77371001,0.00035881,2]
[421956795,1778369446000,-3744.34733713,0.00035881,2]
[421956796,1778369446000,-400.0,0.00035881,2]
[421956797,1778369446000,-3713.08295613,0.00035881,2]
[421956800,1778369447000,-8128.3,0.00035881,2]
[421956801,1778369447000,-4316.01703135,0.00035881,2]
[421956802,1778369447000,-637.0,0.00035881,2]
[421956803,1778369447000,-458.66526517,0.00035881,2]
[421956807,1778369447000,-717.79444325,0.00035881,2]
[421956806,1778369447000,-1257.27213359,0.00035881,2]
[421956805,1778369447000,-1000.0,0.00035881,2]
[421956808,1778369447000,-400.0,0.00035881,2]
[421956809,1778369447000,-4779.64922309,0.00035881,2]
[421956804,1778369447000,-1397.6292676,0.00035881,2]
[421956843,1778369449000,2715.0,0.00027397,120]
[421956845,1778370357000,-175.0,0.0002,2]
[421956846,1778370357000,-147.70043959,0.0002,2]
[421956847,1778370556000,-7.29956041,0.0002,2]
[421956850,1778370556000,-288.26954174,0.0002059,2]
[421956849,1778370556000,-407.0,0.00020469,2]
[421956848,1778370556000,-409.0,0.00020413,2]
[421956853,1778370570000,-175.0,0.00021,2]
[421956852,1778370570000,-411.0,0.00020842,2]
[421956851,1778370570000,-120.73045826,0.0002059,2]
[421956854,1778370570000,-155.0,0.00021,2]
[421956860,1778370633000,-370.0,0.00022226,2]
[421956858,1778370633000,-155.0,0.00022,2]
[421956859,1778370633000,-500.0,0.00022224,2]
[421956857,1778370633000,-175.0,0.00022,2]
[421956919,1778370637000,-404.0,0.0002223,2]
[421956921,1778370637000,-251.77109638,0.00022324,2]
[421956920,1778370637000,-399.0,0.00022244,2]
[421956923,1778370637000,-354.53457841,0.00022324,2]
[421956918,1778370637000,-36.0,0.00022226,2]
[421956926,1778370637000,-399.0,0.00022324,2]
[421956924,1778370637000,-45.46542159,0.00022324,2]
[421956928,1778370637000,-158.07061393,0.00022325,2]
[421956927,1778370637000,-406.0,0.00022325,2]
[421956925,1778370637000,-411.0,0.00022324,2]
[421956922,1778370637000,-402.0,0.00022324,2]
[421957016,1778370640000,-274.35,0.00027927,2]
[421956998,1778370640000,-221.34606891,0.00026138,2]
[421957000,1778370640000,-503.0,0.00026815,4]
[421957002,1778370640000,-150.0,0.00026849,2]
[421957004,1778370640000,-1201.12,0.00027217,2]
[421957005,1778370640000,-212.34706141,0.00027228,2]
[421957013,1778370640000,-1483.9044813,0.000278,7]
[421957015,1778370640000,-5000.0,0.00027913,2]
[421957011,1778370640000,-258.74280829,0.00027671,2]
[421957021,1778370640000,-150.0,0.00028192,2]
[421957050,1778370640000,-1201.12,0.00030619,2]
[421957025,1778370640000,-181.84,0.00028446,120]
[421957032,1778370640000,-225.38,0.00028503,2]
[421957028,1778370640000,-1000.0,0.00028448,2]
[421957030,1778370640000,-191.09,0.00028451,120]
[421957036,1778370640000,-2619.54,0.00028584,2]
[421957038,1778370640000,-500.0,0.0002874,2]
[421957034,1778370640000,-200.0,0.00028555,2]
[421957040,1778370640000,-405.0,0.00028929,2]
[421957009,1778370640000,-152.0,0.00027435,7]
[421957046,1778370640000,-2240.0,0.00030393,30]
[421957018,1778370640000,-503.0,0.00028024,5]
[421957007,1778370640000,-258.74280829,0.00027397,2]
[421956978,1778370640000,-1091.77,0.00024174,2]
[421956992,1778370640000,-503.0,0.00025606,3]
[421956964,1778370640000,-403.0,0.00022327,2]
[421956965,1778370640000,-410.0,0.00022333,2]
[421956963,1778370640000,-238.92938607,0.00022325,2]
[421956966,1778370640000,-405.0,0.0002235,2]
[421956967,1778370640000,-407.0,0.00022402,2]
[421956968,1778370640000,-200.29369116,0.00022441,2]
[421956971,1778370640000,-155.0,0.00023,2]
[421956969,1778370640000,-404.0,0.00022566,2]
[421956970,1778370640000,-175.0,0.00023,2]
[421956972,1778370640000,-407.0,0.0002307,2]
[421956996,1778370640000,-1091.77,0.00025786,2]
[421956973,1778370640000,-1667.01632336,0.00023866,2]
[421956974,1778370640000,-175.0,0.00024,2]
[421956977,1778370640000,-429.96,0.00024174,2]
[421957042,1778370640000,-503.0,0.00029232,7]
[421956981,1778370640000,-503.0,0.00024397,2]
[421956983,1778370640000,-222.3,0.00024658,2]
[421956985,1778370640000,-203.38,0.00024658,2]
[421956986,1778370640000,-216.62,0.00024658,2]
[421956994,1778370640000,-429.96,0.00025786,2]
[421956990,1778370640000,-160.0,0.00025,2]
[421956988,1778370640000,-176.0,0.00025,2]
[421956975,1778370640000,-155.0,0.00024,2]
[421957048,1778370640000,-503.0,0.00030441,8]
[421957023,1778370640000,-2500.0,0.00028345,120]
[421957054,1778370640000,-155.0,0.00030893,30]
[421957109,1778370640000,-1000.0,0.00032876,2]
[421957111,1778370640000,-298.0,0.00032877,2]
[421957117,1778370640000,-175.0,0.00032893,30]
[421957119,1778370640000,-155.0,0.00032893,30]
[421957121,1778370640000,-500.0,0.00032959,2]
[421957127,1778370640000,-4895.64,0.0003336,10]
[421957125,1778370640000,-150.0,0.00033171,7]
[421957123,1778370640000,-150.0,0.00032973,7]
[421957129,1778370640000,-150.0,0.0003337,7]
[421957140,1778370640000,-150.0,0.00033767,7]
[421957102,1778370640000,-150.0,0.00032636,2]
[421957142,1778370640000,-175.0,0.00033893,30]
[421957136,1778370640000,-150.0,0.0003337,7]
[421957138,1778370640000,-150.0,0.00033568,7]
[421957133,1778370640000,-150.0,0.0003337,7]
[421957146,1778370640000,-150.0,0.00033966,7]
[421957144,1778370640000,-155.0,0.00033893,30]
[421957148,1778370640000,-150.0,0.00033966,7]
[421957153,1778370640000,-1201.12,0.00034021,2]
[421957151,1778370640000,-1222.0,0.0003397,2]
[421957044,1778370640000,-150.0,0.00029601,2]
[421957157,1778370640000,-150.0,0.00034164,7]
[421957131,1778370640000,-150.0,0.0003337,7]
[421957104,1778370640000,-150.0,0.00032774,7]
[421957155,1778370640000,-503.0,0.00034067,12]
[421957115,1778370640000,-181.84,0.00032884,120]
[421957107,1778370640000,-503.0,0.00032859,10]
[421957062,1778370640000,-500.0,0.00031269,22]
[421957056,1778370640000,-150.0,0.00031081,2]
[421957066,1778370640000,-196.57332648,0.000313,2]
[421957060,1778370640000,-175.64251188,0.0003125,2]
[421957058,1778370640000,-175.64251189,0.0003125,2]
[421957064,1778370640000,-196.5733265,0.000313,2]
[421957068,1778370640000,-196.57332648,0.000313,2]
[421957075,1778370640000,-175.0,0.00031893,30]
[421957070,1778370640000,-503.0,0.0003165,9]
[421957082,1778370640000,-150.0,0.00032178,7]
[421957052,1778370640000,-175.0,0.00030893,30]
[421957077,1778370640000,-155.0,0.00031893,30]
[421957086,1778370640000,-150.0,0.00032178,7]
[421957100,1778370640000,-150.0,0.00032575,7]
[421957094,1778370640000,-150.0,0.00032178,7]
[421957096,1778370640000,-150.0,0.00032178,7]
[421957098,1778370640000,-150.0,0.00032377,7]
[421957113,1778370640000,-199.46514284,0.00032877,2]
[421957092,1778370640000,-150.0,0.00032178,7]
[421957088,1778370640000,-150.0,0.00032178,7]
[421957079,1778370640000,-191.09,0.00032007,120]
[421957084,1778370640000,-150.0,0.00032178,7]
[421957090,1778370640000,-150.0,0.00032178,7]
[421957214,1778370641000,-253.80801046,0.00035016,7]
[421957209,1778370641000,-500.0,0.00035016,7]
[421957207,1778370641000,-500.0,0.00035016,7]
[421957208,1778370641000,-450.0,0.00035016,7]
[421957210,1778370641000,-500.0,0.00035016,7]
[421957212,1778370641000,-500.0,0.00035016,7]
[421957211,1778370641000,-500.0,0.00035016,7]
[421957213,1778370641000,-500.0,0.00035016,7]
[421957205,1778370641000,-500.0,0.00035016,7]
[421957219,1778370641000,-500.0,0.00035016,30]
[421957216,1778370641000,-500.0,0.00035016,7]
[421957220,1778370641000,-500.0,0.00035016,120]
[421957218,1778370641000,-507.78700204,0.00035016,120]
[421957217,1778370641000,-500.0,0.00035016,7]
[421957221,1778370641000,-500.0,0.00035016,120]
[421957222,1778370641000,-500.0,0.00035016,120]
[421957223,1778370641000,-185.77833692,0.00035016,7]
[421957225,1778370641000,-250.0,0.00035017,30]
[421957224,1778370641000,-500.0,0.00035016,120]
[421957203,1778370641000,-500.0,0.00035016,7]
[421957215,1778370641000,-500.0,0.00035016,7]
[421957199,1778370641000,-500.0,0.00035016,7]
[421957178,1778370641000,-155.0,0.00034893,30]
[421957197,1778370641000,-214.73073128,0.00035007,10]
[421957168,1778370641000,-150.0,0.00034562,7]
[421957166,1778370641000,-150.0,0.00034562,7]
[421957160,1778370641000,-826.585,0.00034264,38]
[421957164,1778370641000,-150.0,0.00034363,7]
[421957162,1778370641000,-150.0,0.00034267,2]
[421957170,1778370641000,-150.0,0.00034562,7]
[421957176,1778370641000,-175.0,0.00034893,30]
[421957172,1778370641000,-150.0,0.00034562,7]
[421957174,1778370641000,-150.0,0.0003476,7]